fUST/lending_fUST_20250717
["ID","MTS","AMOUNT","RATE_DAILY","PERIOD"]
[372578007,1752690653076,-600.424109,0.00021986,7]
[372578008,1752690653085,-600.424109,0.00021986,7]
[372578009,1752690653094,-159.7314836,0.00021986,2]
[372578010,1752690653103,-159.7314836,0.00021986,2]
[372578011,1752690653112,-316.838298,0.00021986,2]
[372578012,1752690653122,-159.7314836,0.00021986,2]
[372578013,1752690653131,-319.4629672,0.00021986,2]
[372578014,1752690653140,-460.0,0.00021999,2]
[372578015,1752690653150,-460.0,0.00021999,2]
[372578016,1752690653160,-151.0,0.00021999,7]
[372578017,1752690653169,-2834.11,0.00021999,2]
[372578018,1752690653178,-1212.97,0.00021999,2]
[372578019,1752690653188,-1699.24,0.00021999,2]
[372578020,1752690653197,-151.0,0.00021999,7]
[372578021,1752690653206,-151.0,0.00021999,7]
[372578022,1752690653215,-250.255223,0.00021999,7]
[372578023,1752690653227,-185.64945012,0.00021999,2]
[372578024,1752690653237,-1509.48,0.00021999,2]
[372578025,1752690653246,-460.0,0.00021999,2]
[372578026,1752690653256,-45026.50599173,0.00022,2]
[372578027,1752690653265,-3618.08,0.00022,7]
[372578028,1752690653274,-2566.0,0.00022,2]
[372578029,1752690653284,-2566.0,0.00022,2]
[372578030,1752690653293,-2566.0,0.00022,2]
[372578031,1752690653303,-2566.0,0.00022,2]
[372578032,1752690653313,-2566.0,0.00022,2]
[372578033,1752690653323,-2566.0,0.00022,2]
[372578034,1752690653333,-2566.0,0.00022,2]
[372578035,1752690653343,-2566.0,0.00022,2]
[372578036,1752690653352,-2566.0,0.00022,2]
[372578037,1752690653362,-2566.0,0.00022,2]
[372578038,1752690653371,-152.0,0.00022,3]
[372578039,1752690653381,-152.0,0.00022,3]
[372578040,1752690653390,-341.421526,0.00022,14]
[372578041,1752690653400,-152.0,0.00022,3]
[372578042,1752690653410,-152.0,0.00022,3]
[372578043,1752690653420,-152.0,0.00022,3]
[372578044,1752690653429,-152.0,0.00022,3]
[372578045,1752690653439,-152.0,0.00022,3]
[372578046,1752690653449,-152.0,0.00022,3]
[372578047,1752690653459,-152.0,0.00022,3]
[372578048,1752690653469,-152.0,0.00022,3]
[372578049,1752690653480,-152.0,0.00022,3]
[372578050,1752690653490,-152.0,0.00022,3]
[372578051,1752690653499,-152.0,0.00022,3]
[372578052,1752690653509,-152.0,0.00022,3]
[372578053,1752690653518,-152.0,0.00022,3]
[372578054,1752690653528,-152.0,0.00022,3]
[372578055,1752690653537,-152.0,0.00022,3]
[372578056,1752690653547,-152.0,0.00022,3]
[372578057,1752690653557,-152.0,0.00022,3]
[372578058,1752690653567,-152.0,0.00022,3]
[372578059,1752690653576,-152.0,0.00022,3]
[372578060,1752690653585,-152.0,0.00022,3]
[372578061,1752690653595,-324.0,0.00022,3]
[372578062,1752690653604,-152.0,0.00022,3]
[372578063,1752690653613,-324.0,0.00022,3]
[372578064,1752690653623,-152.0,0.00022,3]
[372578065,1752690653632,-324.0,0.00022,3]
[372578066,1752690653642,-152.0,0.00022,3]
[372578067,1752690653651,-324.0,0.00022,3]
[372578068,1752690653661,-152.0,0.00022,3]
[372578069,1752690653670,-324.0,0.00022,3]
[372578070,1752690653680,-152.0,0.00022,3]
[372578071,1752690653692,-324.0,0.00022,3]
[372578072,1752690653703,-152.0,0.00022,3]
[372578073,1752690653713,-324.0,0.00022,3]
[372578074,1752690653722,-152.0,0.00022,3]
[372578075,1752690653734,-324.0,0.00022,3]
[372578076,1752690653743,-152.0,0.00022,3]
[372578077,1752690653753,-324.0,0.00022,3]
[372578078,1752690653763,-152.0,0.00022,3]
[372578079,1752690653772,-324.0,0.00022,3]
[372578080,1752690653781,-152.0,0.00022,3]
[372578081,1752690653791,-324.0,0.00022,3]
[372578082,1752690653801,-152.0,0.00022,3]
[372578083,1752690653811,-324.0,0.00022,3]
[372578084,1752690653821,-152.0,0.00022,3]
[372578085,1752690653831,-324.0,0.00022,3]
[372578086,1752690653841,-152.0,0.00022,3]
[372578087,1752690653850,-324.0,0.00022,3]
[372578088,1752690653860,-324.0,0.00022,3]
[372578089,1752690653869,-152.0,0.00022,3]
[372578090,1752690653879,-324.0,0.00022,3]
[372578091,1752690653889,-152.0,0.00022,3]
[372578092,1752690653898,-324.0,0.00022,3]
[372578093,1752690653908,-152.0,0.00022,3]
[372578094,1752690653918,-324.0,0.00022,3]
[372578095,1752690653928,-152.0,0.00022,3]
[372578096,1752690653937,-324.0,0.00022,3]
[372578097,1752690653947,-159.40812346,0.00022,3]
[372578098,1752690653957,-324.0,0.00022,3]
[372578099,1752690653966,-324.0,0.00022,3]
[372578100,1752690653976,-324.0,0.00022,3]
[372578101,1752690653985,-324.0,0.00022,3]
[372578102,1752690653995,-324.0,0.00022,3]
[372578103,1752690654006,-166.99541613,0.00022,3]
[372578104,1752690654017,-75218.82571281,0.00022,2]
[372578105,1752690654028,-352.61950143,0.00022,2]
[372578106,1752690654038,-54948.53497857,0.00022,2]
[372578107,1752690654186,-19427.35188113,0.00022,2]
[372578108,1752690654197,-27656.40989895,0.00022,2]
[372578109,1752690654208,-48166.90911244,0.00022,14]
[372578110,1752690654217,-166.66245316,0.00022,10]
[372578111,1752690654227,-550.3576061,0.00022,2]
[372578112,1752690654237,-155.0,0.00022,2]
[372578113,1752690654247,-2116.3119451,0.00022,2]
[372578114,1752690654260,-152.0,0.00022,3]
[372578115,1752690654270,-256.0,0.00022,2]
[372578116,1752690654280,-324.0,0.00022,3]
[372578117,1752690654292,-324.0,0.00022,3]
[372578118,1752690654303,-3000.0,0.0002201,2]
[372578119,1752690654315,-2001.24842,0.00022016,8]
[372578120,1752690654325,-3000.0,0.0002202,2]
[372578121,1752690654335,-3000.0,0.0002203,2]
[372578122,1752690654346,-5736.56947062,0.00022038,6]
[372578123,1752690654357,-3000.0,0.0002204,2]
[372578124,1752690654368,-1672.1457018,0.0002205,2]
[372578125,1752690654421,-460.0,0.00019178,2]
[372578126,1752690654431,-460.0,0.00019178,2]
[372578127,1752690654443,-777.35,0.00021917,2]
[372578128,1752690654454,-1327.8542982,0.0002205,2]
[372578129,1752690654464,-3000.0,0.0002206,2]
[372578130,1752690654476,-3000.0,0.0002207,2]
[372578131,1752690654485,-1429.72301548,0.0002208,2]
[372578132,1752690654497,-1570.27698452,0.0002208,2]
[372578133,1752690654506,-307.9988728,0.00022082,2]
[372578134,1752690654517,-3000.0,0.0002209,2]
[372578135,1752690654526,-447.5,0.00022092,5]
[372578136,1752690654535,-3000.0,0.000221,2]
[372578137,1752690654545,-3149.22414268,0.000221,7]
[372578138,1752690654723,-460.0,0.00019178,2]
[372578139,1752690654733,-11509.3780388,0.000221,7]
[372578140,1752690654745,-700.56768757,0.000221,7]
[372578141,1752690654757,-669.44,0.000221,7]
[372578142,1752690654769,-9453.12,0.000221,7]
[372578143,1752690654840,-429.1687796,0.00021178,2]
[372578144,1752690654851,-159.7314836,0.00021986,2]
[372578145,1752690654862,-460.0,0.00021999,2]
[372578146,1752690654873,-6724.88247236,0.000221,7]
[372578147,1752690654886,-8881.72765859,0.000221,7]
[372578148,1752690654897,-151.0,0.000221,7]
[372578149,1752690654908,-151.0,0.000221,7]
[372578150,1752690654918,-151.0,0.000221,7]
[372578151,1752690654929,-572.346681,0.000221,7]
[372578152,1752690654939,-572.346681,0.000221,7]
[372578153,1752690654949,-151.0,0.000221,7]
[372578154,1752690654959,-151.0,0.000221,7]
[372578155,1752690654968,-3000.0,0.0002211,2]
[372578156,1752690654979,-3000.0,0.0002212,2]
[372578157,1752690654989,-3000.0,0.0002213,2]
[372578158,1752690654999,-429.1687796,0.00022137,2]
[372578159,1752690655010,-429.1687796,0.00022137,2]
[372578160,1752690655020,-429.1687796,0.00022137,2]
[372578161,1752690655030,-429.1687796,0.00022137,2]
[372578162,1752690655040,-429.1687796,0.00022137,2]
[372578163,1752690655049,-429.1687796,0.00022137,2]
[372578164,1752690655059,-429.1687796,0.00022137,2]
[372578165,1752690655069,-429.1687796,0.00022137,2]
[372578166,1752690655079,-429.1687796,0.00022137,2]
[372578167,1752690655089,-429.1687796,0.00022137,2]
[372578168,1752690655098,-429.1687796,0.00022137,2]
[372578169,1752690655108,-858.3375592,0.00022137,2]
[372578170,1752690655117,-429.1687796,0.00022137,2]
[372578171,1752690655127,-429.1687796,0.00022137,2]
[372578172,1752690655137,-429.1687796,0.00022137,2]
[372578173,1752690655146,-429.1687796,0.00022137,2]
[372578174,1752690655156,-429.1687796,0.00022137,2]
[372578175,1752690655166,-600.424109,0.00022137,7]
[372578176,1752690655175,-600.424109,0.00022137,7]
[372578177,1752690655186,-3000.0,0.0002214,2]
[372578178,1752690655196,-5519.377931,0.0002215,2]
[372578179,1752690655207,-341.421526,0.00022176,6]
[372578180,1752690655217,-460.0,0.00022191,2]
[372578181,1752690655227,-460.0,0.00022191,2]
[372578182,1752690655237,-460.0,0.00022191,2]
[372578183,1752690655247,-460.0,0.00022191,2]
[372578184,1752690655257,-581.58,0.00022191,2]
[372578185,1752690655267,-460.0,0.00022191,2]
[372578186,1752690655278,-151.0,0.00022191,7]
[372578187,1752690655288,-151.0,0.00022191,7]
[372578188,1752690655298,-600.16,0.00022191,2]
[372578189,1752690655308,-460.0,0.00022191,2]
[372578190,1752690655318,-460.0,0.00022191,2]
[372578191,1752690655328,-630.18,0.00022191,2]
[372578192,1752690655339,-460.0,0.00022191,2]
[372578193,1752690655349,-697.63,0.00022191,2]
[372578194,1752690655360,-460.0,0.00022191,2]
[372578195,1752690655370,-753.91,0.00022191,2]
[372578196,1752690655380,-341.421526,0.00022191,2]
[372578197,1752690655390,-948.59,0.00022191,2]
[372578198,1752690655399,-803.35,0.00022191,2]
[372578199,1752690655409,-460.0,0.00022191,2]
[372578200,1752690655419,-460.0,0.00022191,2]
[372578201,1752690655429,-877.46,0.00022191,2]
[372578202,1752690655439,-460.0,0.00022191,2]
[372578203,1752690655449,-600.424109,0.00022191,7]
[372578204,1752690655459,-600.424109,0.00022191,7]
[372578205,1752690655470,-768.26,0.00022191,2]
[372578206,1752690655481,-785.2,0.00022191,2]
[372578207,1752690655492,-1527.39,0.00022191,2]
[372578208,1752690655502,-1299.29,0.00022191,2]
[372578209,1752690655512,-3730.58,0.00022191,2]
[372578210,1752690655522,-1854.38,0.00022191,2]
[372578211,1752690655532,-5722.12,0.00022191,2]
[372578212,1752690655542,-830.33,0.00022191,2]
[372578213,1752690655552,-587.43,0.00022191,2]
[372578214,1752690655562,-720.93,0.00022191,2]
[372578215,1752690655572,-654.85,0.00022191,2]
[372578216,1752690655582,-621.95,0.00022191,2]
[372578217,1752690655592,-4910.64,0.00022191,2]
[372578218,1752690655602,-460.0,0.00022191,2]
[372578219,1752690655612,-588.07,0.00022191,2]
[372578220,1752690655622,-2634.73,0.00022191,2]
[372578221,1752690655631,-460.0,0.00022191,2]
[372578222,1752690655641,-460.0,0.00022191,2]
[372578223,1752690655651,-796.59,0.00022191,2]
[372578224,1752690655661,-2262.11,0.00022191,2]
[372578225,1752690655672,-460.0,0.00022191,2]
[372578226,1752690655683,-573.57,0.00022191,2]
[372578227,1752690655698,-460.0,0.00022191,2]
[372578228,1752690655709,-699.76,0.00022191,2]
[372578229,1752690655720,-1384.47,0.00022191,2]
[372578230,1752690655732,-460.0,0.00022191,2]
[372578231,1752690655742,-2061.49,0.00022191,2]
[372578232,1752690655752,-559.79,0.00022191,2]
[372578233,1752690655764,-1819.44,0.00022191,2]
[372578234,1752690655778,-777.35,0.00022191,2]
[372578235,1752690655789,-256.0,0.00022192,7]
[372578236,1752690655799,-1530.0,0.00022192,2]
[372578237,1752690655810,-151.0,0.00022192,2]
[372578238,1752690655820,-151.0,0.00022192,2]
[372578239,1752690655830,-151.0,0.00022192,2]
[372578240,1752690655839,-151.0,0.00022192,2]
[372578241,1752690655850,-151.0,0.00022192,2]
[372578242,1752690655860,-500.0,0.00022192,2]
[372578243,1752690655870,-500.0,0.00022192,2]
[372578244,1752690655879,-543.0,0.00022192,2]
[372578245,1752690655890,-269.52684723,0.00022192,2]
[372578246,1752690655899,-151.0,0.00022192,2]
[372578247,1752690655909,-151.0,0.00022192,2]
[372578248,1752690655920,-151.0,0.00022192,2]
[372578249,1752690655931,-151.0,0.000222,6]
[372578250,1752690656070,-19293.48144392,0.000222,2]
[372578251,1752690656080,-160.0,0.0002222,6]
[372578252,1752690656090,-1262.34660236,0.00022224,2]
[372578253,1752690656100,-250.0,0.00022245,2]
[372578254,1752690656109,-2328.69882468,0.00022256,2]
[372578255,1752690656119,-207.4,0.00022256,2]
[372578256,1752690656128,-176.29657319,0.00022256,2]
[372578257,1752690656137,-283.57159003,0.00022256,2]
[372578258,1752690656146,-217.07464614,0.00022256,2]
[372578259,1752690656156,-25000.0,0.00022256,2]
[372578260,1752690656166,-62.5227908,0.00022256,2]
[372578264,1752690888437,216.46866576,0.00018864,2]
[372578266,1752691054227,286.849563,0.00013699,2]
[372578267,1752691186761,297.64441542,0.00018863,2]
[372578268,1752691313781,2236.00189228,0.00027397,120]
[372578270,1752691382979,300.0,0.0001896,2]
[372578272,1752691460697,300.0,0.0001896,2]
[372578273,1752691467332,260.43886344,0.00018861,2]
[372578274,1752691476327,500.0,0.0001896,2]
[372578275,1752691476361,500.0,0.0001896,2]
[372578276,1752691476393,500.0,0.0001896,2]
[372578277,1752691476424,300.0,0.0001896,2]
[372578278,1752691476459,500.0,0.0001896,2]
[372578279,1752691476491,485.23503869,0.0001896,2]
[372578280,1752691476534,500.0,0.0001896,2]
[372578281,1752691476581,500.0,0.0001896,2]
[372578282,1752691476622,500.0,0.0001896,2]
[372578283,1752691476666,501.69034962,0.0001896,2]
[372578284,1752691476711,500.0,0.0001896,2]
[372578285,1752691476753,501.69034962,0.0001896,2]
[372578286,1752691476794,498.00174885,0.0001896,2]
[372578287,1752691476836,500.0,0.0001896,2]
[372578288,1752691476883,501.69034962,0.0001896,2]
[372578289,1752691476932,501.69034962,0.0001896,2]
[372578290,1752691476973,300.0,0.0001896,2]
[372578291,1752691477018,501.69034962,0.0001896,2]
[372578292,1752691477059,501.69034962,0.0001896,2]
[372578293,1752691477131,501.69034962,0.0001896,2]
[372578294,1752691477173,501.69034962,0.0001896,2]
[372578295,1752691477217,501.69034962,0.0001896,2]
[372578296,1752691477256,501.69034962,0.0001896,2]
[372578297,1752691477296,501.69034962,0.0001896,2]
[372578298,1752691477338,501.69034962,0.0001896,2]
[372578299,1752691477375,501.69034962,0.0001896,2]
[372578300,1752691477414,501.69034962,0.0001896,2]
[372578301,1752691477459,501.69034962,0.0001896,2]
[372578302,1752691477501,501.69034962,0.0001896,2]
[372578303,1752691477558,501.69034962,0.0001896,2]
[372578304,1752691477605,501.69034962,0.0001896,2]
[372578305,1752691477645,501.69034962,0.0001896,2]
[372578306,1752691477685,501.69034962,0.0001896,2]
[372578307,1752691477731,501.69034962,0.0001896,2]
[372578308,1752691477770,501.69034962,0.0001896,2]
[372578309,1752691477808,501.69034962,0.0001896,2]
[372578310,1752691477850,501.69034962,0.0001896,2]
[372578311,1752691477887,501.69034962,0.0001896,2]
[372578312,1752691477929,501.69034962,0.0001896,2]
[372578313,1752691477985,501.69034962,0.0001896,2]
[372578314,1752691478031,501.69034962,0.0001896,2]
[372578315,1752691478070,501.69034962,0.0001896,2]
[372578316,1752691478110,501.69034962,0.0001896,2]
[372578317,1752691478154,501.69034962,0.0001896,2]
[372578318,1752691478205,501.69034962,0.0001896,2]
[372578319,1752691478241,501.69034962,0.0001896,2]
[372578320,1752691478281,501.69034962,0.0001896,2]
[372578321,1752691478554,395.00000007,0.0001896,2]
[372578322,1752691478592,501.69034962,0.0001896,2]
[372578323,1752691478626,501.69034962,0.0001896,2]
[372578324,1752691478660,501.69034962,0.0001896,2]
[372578325,1752691478703,501.69034962,0.0001896,2]
[372578326,1752691478740,501.69034962,0.0001896,2]
[372578327,1752691478773,501.69034962,0.0001896,2]
[372578328,1752691478809,501.69034962,0.0001896,2]
[372578329,1752691478846,501.69034962,0.0001896,2]
[372578330,1752691478887,501.69034962,0.0001896,2]
[372578331,1752691478923,501.69034962,0.0001896,2]
[372578332,1752691478959,501.69034962,0.0001896,2]
[372578333,1752691478991,501.69034962,0.0001896,2]
[372578334,1752691479041,501.69034962,0.0001896,2]
[372578335,1752691479079,501.69034962,0.0001896,2]
[372578336,1752691479118,501.69034962,0.0001896,2]
[372578337,1752691479151,501.69034962,0.0001896,2]
[372578338,1752691479190,501.69034962,0.0001896,2]
[372578339,1752691479237,501.69034962,0.0001896,2]
[372578340,1752691479273,501.69034962,0.0001896,2]
[372578341,1752691479307,501.69034962,0.0001896,2]
[372578342,1752691479348,501.69034962,0.0001896,2]
[372578343,1752691496194,500.0,0.0001896,2]
[372578344,1752691496238,500.0,0.0001896,2]
[372578345,1752691496277,500.0,0.0001896,2]
[372578346,1752691496315,500.0,0.0001896,2]
[372578347,1752691496353,500.0,0.0001896,2]
[372578348,1752691496387,500.0,0.0001896,2]
[372578349,1752691496429,500.0,0.0001896,2]
[372578350,1752691496464,500.0,0.0001896,2]
[372578351,1752691496499,500.0,0.0001896,2]
[372578352,1752691496533,500.0,0.0001896,2]
[372578353,1752691496566,500.0,0.0001896,2]
[372578354,1752691496598,500.0,0.0001896,2]
[372578355,1752691496631,500.0,0.0001896,2]
[372578356,1752691496686,500.0,0.0001896,2]
[372578357,1752691496720,500.0,0.0001896,2]
[372578358,1752691496754,500.0,0.0001896,2]
[372578359,1752691496793,500.0,0.0001896,2]
[372578360,1752691496827,500.0,0.0001896,2]
[372578361,1752691496864,254.76732791,0.0001896,2]
[372578362,1752691496901,500.0,0.0001896,2]
[372578363,1752691496940,500.0,0.0001896,2]
[372578364,1752691496973,500.0,0.0001896,2]
[372578365,1752691497008,500.0,0.0001896,2]
[372578366,1752691497046,500.0,0.0001896,2]
[372578367,1752691497086,500.0,0.0001896,2]
[372578368,1752691497123,500.0,0.0001896,2]
[372578369,1752691497163,500.0,0.0001896,2]
[372578370,1752691497198,500.0,0.0001896,2]
[372578371,1752691497231,500.0,0.0001896,2]
[372578372,1752691497265,500.0,0.0001896,2]
[372578373,1752691497302,500.0,0.0001896,2]
[372578374,1752691513704,500.0,0.0001896,2]
[372578375,1752691513924,500.0,0.0001896,2]
[372578378,1752691632176,-209.98,0.00019168,3]
[372578379,1752691632197,-629.98,0.00019168,3]
[372578380,1752691632218,-500.0,0.00019173,2]
[372578381,1752691632240,-0.86735493,0.00019176,2]
[372578382,1752691755489,24900.0,0.00018285,2]
[372578383,1752691783259,459.16588269,0.000189,2]
[372578412,1752691832740,-227.88400551,0.00019078,2]
[372578414,1752691832750,-168.95,0.00019168,3]
[372578416,1752691832760,-506.89,0.00019168,3]
[372578418,1752691832770,-82.73177072,0.00019176,2]
[372578486,1752691838563,-1116.40087435,0.00019176,2]
[372578488,1752691838573,-300.0,0.00019176,2]
[372578489,1752691838583,-1200.0,0.00019176,2]
[372578491,1752691838593,-955.51856453,0.00019177,2]
[372578492,1752691838602,-300.0,0.00019177,2]
[372578494,1752691838612,-300.0,0.00019177,2]
[372578496,1752691838622,-446.89330296,0.00019177,2]
[372578497,1752691838631,-200.0,0.00019177,2]
[372578498,1752691838641,-39.82988721,0.00019177,2]
[372578499,1752691838652,-460.17011279,0.00019177,2]
[372578500,1752691838662,-155.00000001,0.00019177,2]
[372578502,1752691838672,-500.0,0.00019177,2]
[372578503,1752691838681,-500.0,0.00019177,2]
[372578504,1752691838690,-500.0,0.00019177,2]
[372578505,1752691838700,-500.0,0.00019177,2]
[372578506,1752691838710,-189.16856472,0.00019177,2]
[372578507,1752691838719,-500.0,0.00019177,2]
[372578508,1752691838729,-500.0,0.00019177,2]
[372578509,1752691838738,-500.0,0.00019177,2]
[372578510,1752691838747,-500.0,0.00019177,2]
[372578512,1752691838757,-500.0,0.00019177,2]
[372578513,1752691838766,-500.0,0.00019177,2]
[372578514,1752691838776,-460.0,0.00019178,2]
[372578515,1752691838787,-460.0,0.00019178,2]
[372578516,1752691838797,-460.0,0.00019178,2]
[372578517,1752691838807,-460.0,0.00019178,2]
[372578518,1752691838817,-460.0,0.00019178,2]
[372578519,1752691838826,-460.0,0.00019178,2]
[372578520,1752691838837,-460.0,0.00019178,2]
[372578521,1752691838846,-500.0,0.00019178,2]
[372578522,1752691838856,-292.43117976,0.00019178,2]
[372578523,1752691838866,-460.0,0.00019178,2]
[372578524,1752691838876,-460.0,0.00019178,2]
[372578525,1752691838886,-460.0,0.00019178,2]
[372578526,1752691838895,-460.0,0.00019178,2]
[372578527,1752691838905,-460.0,0.00019178,2]
[372578528,1752691838914,-460.0,0.00019178,2]
[372578529,1752691838923,-460.0,0.00019178,2]
[372578530,1752691838933,-460.0,0.00019178,2]
[372578531,1752691838943,-460.0,0.00019178,2]
[372578532,1752691838952,-460.0,0.00019178,2]
[372578533,1752691838962,-460.0,0.00019178,2]
[372578534,1752691838971,-463.28953451,0.00019178,2]
[372578535,1752691838981,-460.0,0.00019178,2]
[372578536,1752691838991,-342.53767838,0.00019178,2]
[372578537,1752691839001,-460.0,0.00019178,2]
[372578538,1752691839011,-460.0,0.00019178,2]
[372578539,1752691839024,-460.0,0.00019178,2]
[372578540,1752691839036,-467.57407058,0.00019178,2]
[372578541,1752691839045,-460.0,0.00019178,2]
[372578542,1752691839055,-460.0,0.00019178,2]
[372578543,1752691839065,-463.98893947,0.00019178,2]
[372578544,1752691839075,-460.0,0.00019178,2]
[372578545,1752691839085,-460.0,0.00019178,2]
[372578546,1752691839094,-460.0,0.00019178,2]
[372578547,1752691839106,-575.44,0.00019178,2]
[372578548,1752691839115,-460.0,0.00019178,2]
[372578549,1752691839125,-460.0,0.00019178,2]
[372578550,1752691839136,-213.0552652,0.00019178,2]
[372578551,1752691839146,-463.75668499,0.00019178,2]
[372578552,1752691839156,-460.0,0.00019178,2]
[372578553,1752691839166,-460.0,0.00019178,2]
[372578554,1752691839176,-460.0,0.00019178,2]
[372578555,1752691839187,-460.0,0.00019178,2]
[372578556,1752691839197,-460.0,0.00019178,2]
[372578557,1752691839208,-460.0,0.00019178,2]
[372578558,1752691839218,-460.0,0.00019178,2]
[372578559,1752691839228,-460.0,0.00019178,2]
[372578560,1752691839238,-462.61272239,0.00019178,2]
[372578561,1752691839248,-100.78068205,0.00019178,2]
[372578562,1752691839262,-359.21931795,0.00019178,2]
[372578563,1752691839272,-460.0,0.00019178,2]
[372578564,1752691839282,-460.0,0.00019178,2]
[372578565,1752691839293,-460.0,0.00019178,2]
[372578566,1752691839302,-460.0,0.00019178,2]
[372578567,1752691839312,-460.0,0.00019178,2]
[372578568,1752691839321,-460.0,0.00019178,2]
[372578569,1752691839331,-460.0,0.00019178,2]
[372578570,1752691839340,-460.0,0.00019178,2]
[372578571,1752691839350,-460.0,0.00019178,2]
[372578572,1752691839359,-466.78,0.00019178,2]
[372578573,1752691839368,-460.0,0.00019178,2]
[372578574,1752691839378,-460.0,0.00019178,2]
[372578575,1752691839388,-460.0,0.00019178,2]
[372578576,1752691839398,-413.00061039,0.00019178,2]
[372578577,1752691839410,-46.99938961,0.00019178,2]
[372578578,1752691839420,-634.38,0.00019178,2]
[372578579,1752691839431,-460.0,0.00019178,2]
[372578580,1752691839441,-460.0,0.00019178,2]
[372578581,1752691839451,-460.0,0.00019178,2]
[372578582,1752691839460,-352.48049851,0.00019178,2]
[372578583,1752691839470,-137.12011188,0.00019178,2]
[372578584,1752691839494,-322.87988812,0.00019178,2]
[372578585,1752691839504,-460.0,0.00019178,2]
[372578586,1752691839514,-460.0,0.00019178,2]
[372578587,1752691839523,-460.0,0.00019178,2]
[372578588,1752691839534,-460.0,0.00019178,2]
[372578589,1752691839544,-460.0,0.00019178,2]
[372578590,1752691839553,-460.0,0.00019178,2]
[372578591,1752691839562,-460.0,0.00019178,2]
[372578592,1752691839572,-635.4,0.00019178,2]
[372578593,1752691839582,-460.0,0.00019178,2]
[372578594,1752691839593,-460.0,0.00019178,2]
[372578595,1752691839602,-460.0,0.00019178,2]
[372578596,1752691839612,-460.52228148,0.00019178,2]
[372578597,1752691839621,-460.0,0.00019178,2]
[372578598,1752691839631,-460.0,0.00019178,2]
[372578599,1752691839642,-460.0,0.00019178,2]
[372578600,1752691839652,-460.0,0.00019178,2]
[372578601,1752691839662,-460.0,0.00019178,2]
[372578602,1752691839671,-479.04,0.00019178,2]
[372578603,1752691839681,-460.0,0.00019178,2]
[372578604,1752691839691,-460.0,0.00019178,2]
[372578605,1752691839700,-460.0,0.00019178,2]
[372578606,1752691839710,-460.0,0.00019178,2]
[372578607,1752691839720,-460.0,0.00019178,2]
[372578608,1752691839729,-460.0,0.00019178,2]
[372578609,1752691839739,-460.0,0.00019178,2]
[372578610,1752691839748,-460.0,0.00019178,2]
[372578611,1752691839757,-716.68,0.00019178,2]
[372578612,1752691839767,-460.0,0.00019178,2]
[372578613,1752691839777,-460.0,0.00019178,2]
[372578614,1752691839788,-460.0,0.00019178,2]
[372578615,1752691839798,-460.0,0.00019178,2]
[372578616,1752691839807,-861.28,0.00019178,2]
[372578617,1752691839818,-460.0,0.00019178,2]
[372578618,1752691839828,-460.0,0.00019178,2]